bitfinex-derivatives/quotes_BTCF0:USTF0_20250209
["timestamp","ask_amount","ask_price","bid_price","bid_amount"]
[1739092105998,0.3608,97016.0,97014.0,0.2061025]
[1739092107299,0.3698,97016.0,97014.0,0.2061025]
[1739092110906,0.05012509,97015.0,97014.0,0.2071025]
[1739092111812,0.05012509,97015.0,97014.0,0.2061025]
[1739092112103,0.05912509,97015.0,97014.0,0.2071025]
[1739092112504,0.06812509,97015.0,97014.0,0.2071025]
[1739092113005,0.018,97015.0,97014.0,0.2071025]
[1739092113408,0.3788,97015.0,97014.0,0.2071025]
[1739092118615,0.018,97015.0,97014.0,0.2071025]
[1739092119119,0.3788,97015.0,97014.0,0.2071025]
[1739092128011,0.5248676,97015.0,97014.0,0.2071025]
[1739092129408,0.1640676,97015.0,97014.0,0.2071025]
[1739092129611,0.5248676,97015.0,97014.0,0.2071025]
[1739092132810,0.5248676,97015.0,97014.0,0.22107297]
[1739092134712,0.3788,97015.0,97014.0,0.22107297]
[1739092136814,0.018,97015.0,97014.0,0.22107297]
[1739092137019,0.00015469,97025.0,97024.0,0.2060828]
[1739092139316,0.18430273,97028.0,97027.0,0.2060765]
[1739092140619,0.18430273,97028.0,97027.0,0.2200765]
[1739092140817,0.3608,97033.0,97032.0,0.2060658]
[1739092141121,0.00015461,97037.0,97036.0,0.2060573]
[1739092142812,0.00015461,97037.0,97036.0,0.2760573]
[1739092143029,0.00015461,97037.0,97036.0,0.2800573]
[1739092143620,0.00915461,97037.0,97036.0,0.2810573]
[1739092143823,0.00915461,97037.0,97036.0,0.2770573]
[1739092144024,0.00915461,97037.0,97036.0,0.2780573]
[1739092145030,0.05926124,97037.0,97036.0,0.2780573]
[1739092145526,0.05926124,97037.0,97036.0,0.2917013]
[1739092147533,0.00915461,97037.0,97036.0,0.2917013]
[1739092150049,0.00915461,97037.0,97036.0,0.4991519]
[1739092154151,0.36995461,97037.0,97036.0,0.4291519]
[1739092154351,0.36995461,97037.0,97036.0,0.2217013]
[1739092157840,0.00915461,97037.0,97036.0,0.2217013]
[1739092171559,0.14949657,97037.0,97036.0,0.2217013]
[1739092173861,0.14949657,97037.0,97036.0,0.4217013]
[1739092174959,0.05926652,97037.0,97036.0,0.4217013]
[1739092186073,0.26532172,97037.0,97036.0,0.202]
[1739092186866,0.35544884,97037.0,97036.0,0.202]
[1739092188065,0.36924523,97037.0,97036.0,0.202]
[1739092191975,1.09084523,97037.0,97036.0,0.202]
[1739092194370,1.15956523,97037.0,97036.0,0.202]
[1739092194780,1.39640633,97037.0,97036.0,0.202]
[1739092195277,1.39640633,97037.0,97036.0,0.07977799]
[1739092196470,1.65809774,97037.0,97036.0,0.07977799]
[1739092200774,1.14576884,97037.0,97036.0,0.07977799]
[1739092203083,1.07704884,97037.0,97036.0,0.07977799]
[1739092203389,1.14568884,97037.0,97036.0,0.07977799]
[1739092203873,1.07704884,97037.0,97036.0,0.14317799]
[1739092206387,0.51019364,97037.0,97036.0,0.14317799]
[1739092207488,0.42006652,97037.0,97036.0,0.14317799]
[1739092210586,0.05926652,97037.0,97036.0,0.14317799]
[1739092211578,0.04241686,97037.0,97036.0,0.14317799]
[1739092215384,0.04241686,97037.0,97036.0,0.35062859]
[1739092215579,0.00015461,97046.0,97045.0,0.2060383]
[1739092217185,0.00015461,97046.0,97045.0,0.2110383]
[1739092217388,0.00015461,97046.0,97045.0,0.2190383]
[1739092219878,0.00015461,97046.0,97045.0,0.23202537]
[1739092220385,0.08740156,97046.0,97045.0,0.23202537]
[1739092224494,0.00015461,97046.0,97045.0,0.23202537]
[1739092224691,0.18403646,97061.0,97045.0,0.02598707]
[1739092224985,0.18403646,97061.0,97056.0,0.2060149]
[1739092227287,0.18403646,97061.0,97056.0,0.2080149]
[1739092228083,0.3608,97062.0,97056.0,0.2080149]
[1739092232197,0.23270142,97057.0,97056.0,0.2080149]
[1739092233293,0.23270142,97057.0,97056.0,0.22113106]
[1739092234988,0.13542859,97057.0,97056.0,0.22113106]
[1739092238098,0.0015462,97057.0,97056.0,0.22113106]
[1739092242194,0.18577822,97057.0,97056.0,0.22113106]
[1739092246002,0.05164831,97057.0,97056.0,0.22113106]
[1739092251009,0.0015462,97057.0,97056.0,0.22113106]
[1739092254609,0.05164831,97057.0,97056.0,0.22113106]
[1739092257218,0.41244831,97057.0,97056.0,0.22113106]
[1739092258417,0.2362565,97057.0,97056.0,0.22113106]
[1739092258622,0.5970565,97057.0,97056.0,0.22113106]
[1739092261111,0.49842244,97057.0,97056.0,0.22113106]
[1739092266315,0.13762244,97057.0,97056.0,0.22113106]
[1739092266615,0.49842244,97057.0,97056.0,0.22113106]
[1739092269114,0.41244831,97057.0,97056.0,0.22113106]
[1739092284130,0.49428275,97057.0,97056.0,0.22113106]
[1739092286325,0.13348275,97057.0,97056.0,0.22113106]
[1739092288644,0.34827812,97057.0,97056.0,0.22113106]
[1739092290942,0.34827812,97057.0,97056.0,0.42858166]
[1739092291548,0.18459405,97063.0,97056.0,0.22256676]
[1739092291852,0.18459405,97063.0,97062.0,0.2060022]
[1739092292947,0.18959405,97063.0,97062.0,0.2060022]
[1739092294441,0.18959405,97063.0,97062.0,0.2080022]
[1739092295452,0.005,97063.0,97062.0,0.4154528]
[1739092311272,0.3608,97084.0,97083.0,0.2059577]
[1739092314068,0.3618,97084.0,97083.0,0.2059577]
[1739092314263,0.3618,97084.0,97083.0,0.2069577]
[1739092314568,0.3608,97084.0,97083.0,0.2069577]
[1739092315978,0.3608,97084.0,97083.0,0.21935276]
[1739092316874,0.41088799,97084.0,97083.0,0.21935276]
[1739092321871,0.05008799,97084.0,97083.0,0.21935276]
[1739092322075,0.41088799,97084.0,97083.0,0.21935276]
[1739092323672,0.5078302,97084.0,97083.0,0.21935276]
[1739092323872,0.59132572,97084.0,97083.0,0.21935276]
[1739092326975,0.49438351,97084.0,97083.0,0.21935276]
[1739092331478,0.41088799,97084.0,97083.0,0.21935276]
[1739092338482,0.59045745,97084.0,97083.0,0.21935276]
[1739092345184,0.49398173,97084.0,97083.0,0.21935276]
[1739092347182,0.13318173,97084.0,97083.0,0.21935276]
[1739092350888,0.00154547,97090.0,97089.0,0.2059449]
[1739092352184,0.00254547,97090.0,97089.0,0.2059449]
[1739092353496,0.1357272,97090.0,97089.0,0.2059449]
[1739092358097,0.1857272,97090.0,97089.0,0.2059449]
[1739092360601,0.18233475,97090.0,97089.0,0.09749366]
[1739092363404,0.54313475,97090.0,97089.0,0.09749366]
[1739092367314,0.4465272,97090.0,97089.0,0.09749366]
[1739092369714,0.00010103,97093.0,97092.0,0.2059385]
[1739092371712,0.00010103,97093.0,97092.0,0.2089385]
[1739092372016,0.00010103,97093.0,97092.0,0.2099385]
[1739092375720,0.07858998,97093.0,97092.0,0.2099385]
[1739092382619,0.07858998,97093.0,97092.0,0.2119385]
[1739092382924,0.07858998,97093.0,97092.0,0.2139385]
[1739092384625,0.00010103,97093.0,97092.0,0.2139385]
[1739092390431,0.07695865,97093.0,97092.0,0.2139385]
[1739092397938,0.00010103,97093.0,97092.0,0.2139385]
[1739092399430,0.00010103,97093.0,97092.0,0.008]
[1739092400635,0.20603743,97093.0,97092.0,0.008]
[1739092402641,0.23643743,97093.0,97092.0,0.008]
[1739092405635,0.36556231,97093.0,97092.0,0.008]
[1739092408833,0.33516231,97093.0,97092.0,0.008]
[1739092410043,0.12922591,97093.0,97092.0,0.008]
[1739092412547,0.21849397,97093.0,97092.0,0.008]
[1739092416746,0.42443037,97093.0,97092.0,0.008]
[1739092419447,0.69596231,97093.0,97092.0,0.008]
[1739092427355,0.89017398,97093.0,97092.0,0.008]
[1739092433650,0.91130121,97093.0,97092.0,0.008]
[1739092434461,0.55050121,97093.0,97092.0,0.008]
[1739092434654,1.27210121,97093.0,97092.0,0.008]
[1739092436562,0.33516231,97093.0,97092.0,0.008]
[1739092436769,1.05676231,97093.0,97092.0,0.008]
[1739092450873,1.24691528,97093.0,97092.0,0.008]
[1739092458266,1.05676231,97093.0,97092.0,0.008]
[1739092459669,0.33516231,97093.0,97092.0,0.008]
[1739092459977,1.05676231,97093.0,97092.0,0.008]
[1739092463278,0.33516231,97093.0,97092.0,0.008]
[1739092463478,1.05676231,97093.0,97092.0,0.008]
[1739092465383,0.33516231,97093.0,97092.0,0.008]
[1739092465584,1.05676231,97093.0,97092.0,0.008]
[1739092465975,1.14617033,97093.0,97092.0,0.008]
[1739092468382,0.2059577,97083.0,97082.0,0.0308]
[1739092468688,0.2059598,97082.0,97081.0,0.2363617]
[1739092468886,0.2059598,97082.0,97081.0,0.0304]
[1739092469883,0.2059598,97082.0,97081.0,0.0314]
[1739092471079,0.2109598,97082.0,97081.0,0.0324]
[1739092473282,0.5717598,97082.0,97081.0,0.0324]
[1739092473479,0.70088468,97082.0,97081.0,0.0324]
[1739092474690,0.34008468,97082.0,97081.0,0.0324]
[1739092474892,0.70088468,97082.0,97081.0,0.0324]
[1739092479894,0.34008468,97082.0,97081.0,0.0324]
[1739092480191,0.70088468,97082.0,97081.0,0.0324]
[1739092480804,0.79020476,97082.0,97081.0,0.0324]
[1739092484800,1.03630636,97082.0,97081.0,0.0324]
[1739092488101,0.86794319,97082.0,97081.0,0.0324]
[1739092493493,0.50714319,97082.0,97081.0,0.0324]
[1739092493693,0.86794319,97082.0,97081.0,0.0324]
[1739092498207,0.94524446,97082.0,97081.0,0.0324]
[1739092498997,0.58444446,97082.0,97081.0,0.0324]
[1739092499203,0.94524446,97082.0,97081.0,0.0324]
[1739092500919,0.94524446,97082.0,97075.0,0.0315]
[1739092500920,0.2059725,97076.0,97075.0,0.0315]
[1739092501494,0.58369387,97082.0,97072.0,0.01148699]
[1739092501710,0.3608,97076.0,97064.0,0.0318]
[1739092501902,0.5667958,97065.0,97064.0,0.0318]
[1739092502503,0.5667958,97065.0,97064.0,0.04299196]
[1739092503104,0.5687958,97065.0,97064.0,0.04299196]
[1739092503304,0.5717958,97065.0,97064.0,0.04299196]
[1739092504605,0.69917886,97065.0,97064.0,0.04299196]
[1739092507912,0.33837886,97065.0,97064.0,0.04299196]
[1739092508102,0.69917886,97065.0,97064.0,0.04299196]
[1739092508604,0.78765486,97065.0,97064.0,0.04299196]
[1739092512009,0.62187759,97065.0,97064.0,0.01119196]
[1739092512218,0.2060001,97063.0,97056.0,0.0301]
[1739092513125,0.2060128,97057.0,97056.0,0.0301]
[1739092513326,0.5668128,97057.0,97056.0,0.0301]
[1739092513619,0.5668128,97057.0,97056.0,0.0411392]
[1739092515312,0.5678128,97057.0,97056.0,0.0411392]
[1739092516821,0.69335025,97057.0,97056.0,0.0411392]
[1739092519717,0.33255025,97057.0,97056.0,0.0411392]
[1739092519917,0.69335025,97057.0,97056.0,0.0411392]
[1739092520826,0.90835105,97057.0,97056.0,0.0411392]
[1739092524232,0.54755105,97057.0,97056.0,0.0411392]
[1739092524426,0.90835105,97057.0,97056.0,0.0411392]
[1739092524622,0.54755105,97057.0,97056.0,0.0411392]
[1739092524928,0.5678128,97057.0,97056.0,0.2471541]
[1739092525527,0.2070128,97057.0,97056.0,0.2471541]
[1739092525923,0.5678128,97057.0,97056.0,0.2471541]
[1739092531241,0.2070128,97057.0,97056.0,0.2471541]
[1739092531432,0.5678128,97057.0,97056.0,0.2471541]
[1739092534036,0.61791745,97057.0,97056.0,0.2471541]
[1739092535551,0.61791745,97057.0,97056.0,0.0411392]
[1739092535744,0.61791745,97057.0,97056.0,0.0110392]
[1739092535946,0.61791745,97057.0,97055.0,0.00169972]
[1739092536336,0.06672,97056.0,97055.0,0.00169972]
[1739092536652,0.2060285,97050.0,97041.0,0.0324]
[1739092536840,0.3608,97042.0,97041.0,0.0324]
[1739092537149,0.3608,97042.0,97041.0,0.04349158]
[1739092537738,0.3608,97042.0,97041.0,0.05049158]
[1739092538352,0.5668447,97042.0,97041.0,0.01809158]
[1739092538546,0.5668447,97042.0,97041.0,0.01609158]
[1739092538851,0.5668447,97042.0,97041.0,0.02309158]
[1739092540855,0.6589447,97042.0,97041.0,0.012]
[1739092541655,0.6589447,97042.0,97032.0,0.14019547]
[1739092541656,0.58387214,97042.0,97032.0,0.00015452]
[1739092541851,0.5668638,97033.0,97032.0,0.00015452]
[1739092543861,0.9276638,97033.0,97032.0,0.00015452]
[1739092544544,0.9276638,97033.0,97032.0,0.00615452]
[1739092544954,0.9286638,97033.0,97032.0,0.01515452]
[1739092554167,0.97878485,97033.0,97032.0,0.01515452]
[1739092554568,0.97778485,97033.0,97032.0,0.00215452]
[1739092557666,0.25618485,97033.0,97032.0,0.00215452]
[1739092557863,0.97778485,97033.0,97032.0,0.00215452]
[1739092558063,1.06261326,97033.0,97032.0,0.00215452]
[1739092560373,0.2060808,97025.0,97023.0,0.01118377]
[1739092560670,0.5668808,97025.0,97023.0,0.01118377]
[1739092561565,0.5678808,97025.0,97024.0,0.0375]
[1739092561772,0.5678808,97025.0,97024.0,0.0405]
[1739092567271,0.3618,97025.0,97024.0,0.0405]
[1739092570778,0.3608,97025.0,97024.0,0.0395]
[1739092571168,0.3608,97025.0,97024.0,0.0365]
[1739092571169,0.49970314,97025.0,97024.0,0.0365]
[1739092571369,0.50070314,97025.0,97024.0,0.0365]
[1739092571568,0.50070314,97025.0,97024.0,0.0315]
[1739092578978,0.41192063,97025.0,97024.0,0.0315]
[1739092582786,0.05112063,97025.0,97024.0,0.0315]
[1739092582986,0.41192063,97025.0,97024.0,0.0315]
[1739092589485,0.05112063,97025.0,97024.0,0.0315]
[1739092595295,0.05112063,97025.0,97023.0,0.21726697]
[1739092595296,0.41192063,97025.0,97023.0,0.21726697]
[1739092597686,0.2060829,97024.0,97023.0,0.01118377]
[1739092597989,0.25620353,97024.0,97021.0,0.00154569]
[1739092598894,0.3608,97022.0,97021.0,0.00154569]
[1739092600393,0.3608,97022.0,97021.0,0.01376191]
[1739092601996,0.41092063,97022.0,97021.0,0.01376191]
[1739092606001,0.49546193,97022.0,97021.0,0.01376191]
[1739092609400,0.41092063,97022.0,97021.0,0.01376191]
[1739092611009,0.05012063,97022.0,97021.0,0.01376191]
[1739092612810,0.3608,97027.0,97021.0,0.01376191]
[1739092612811,0.13331145,97026.0,97025.0,0.2060808]
[1739092614106,0.13531145,97026.0,97025.0,0.2060808]
[1739092622521,0.002,97026.0,97025.0,0.2060808]
[1739092629325,0.05211721,97026.0,97025.0,0.2060808]
[1739092636031,0.13722516,97026.0,97025.0,0.2060808]
[1739092644131,0.05211721,97026.0,97025.0,0.2060808]
[1739092645934,0.05211721,97026.0,97021.0,0.01121622]
[1739092646140,0.2390814,97025.0,97021.0,0.2060888]
[1739092646842,0.2390814,97025.0,97016.0,0.04819209]
[1739092647042,0.2390814,97025.0,97022.0,0.2060856]
[1739092648232,0.2390814,97025.0,97023.0,0.2060843]
[1739092648935,0.2390814,97025.0,97024.0,0.2060829]
[1739092650350,0.2400814,97025.0,97024.0,0.2060829]
[1739092651546,0.47495361,97025.0,97024.0,0.2060829]
[1739092655441,0.29019861,97025.0,97024.0,0.2060829]
[1739092657543,0.08411721,97025.0,97022.0,0.0106368]
[1739092657749,0.206085,97023.0,97020.0,0.206091]
[1739092657939,0.3608,97021.0,97020.0,0.206091]
[1739092660849,0.3608,97021.0,97020.0,0.208091]
[1739092662146,0.13282166,97025.0,97022.0,0.2060862]
[1739092662950,0.2728347,97028.0,97022.0,0.2060862]
[1739092664056,0.2728347,97028.0,97022.0,0.2070862]
[1739092664242,0.3608,97023.0,97022.0,0.2070862]
[1739092667052,0.3608,97023.0,97022.0,0.2060862]
[1739092667253,0.3608,97023.0,97022.0,0.2070862]
[1739092670761,0.566885,97023.0,97022.0,0.001]
[1739092673062,0.61700827,97023.0,97022.0,0.001]
[1739092684571,1.03890864,97023.0,97022.0,0.001]
[1739092688481,0.83282364,97023.0,97016.0,0.01059073]
[1739092688769,0.2060978,97017.0,97015.0,0.00015452]
[1739092689971,0.2060978,97017.0,97016.0,0.004]
[1739092690463,0.2060978,97017.0,97016.0,0.006]
[1739092690967,0.2060978,97017.0,97015.0,0.00415452]
[1739092691177,0.2060978,97017.0,97015.0,0.00615452]
[1739092691671,0.2060978,97017.0,97016.0,0.006]
[1739092692276,0.2061318,97001.0,97000.0,0.19558719]
[1739092692471,0.5669318,97001.0,97000.0,0.19558719]
[1739092692665,0.5669318,97001.0,97000.0,0.18462868]
[1739092693267,0.5669318,97001.0,96995.0,0.00154641]
[1739092693268,0.3608,97001.0,96995.0,0.00154641]
[1739092693579,0.2061424,96996.0,96995.0,0.01230726]
[1739092694676,0.2071424,96996.0,96995.0,0.02130726]
[1739092694881,0.2081424,96996.0,96995.0,0.03030726]
[1739092697277,0.2081424,96996.0,96995.0,0.018]
[1739092697471,0.2071424,96996.0,96995.0,0.015]
[1739092698070,0.25726567,96996.0,96995.0,0.015]
[1739092698670,0.25826567,96996.0,96995.0,0.009]
[1739092699381,0.05112327,96996.0,96991.0,0.0001546]
[1739092699582,0.5669509,96992.0,96991.0,0.0001546]
[1739092700570,0.5669509,96992.0,96991.0,0.0011546]
[1739092701584,0.9277509,96992.0,96991.0,0.0011546]
[1739092702182,0.97787417,96992.0,96991.0,0.0011546]
[1739092703982,1.04479417,96992.0,96991.0,0.0011546]
[1739092705379,0.9946709,96992.0,96991.0,0.0011546]
[1739092707681,0.9947109,96992.0,96991.0,0.0011546]
[1739092708584,0.9277509,96992.0,96991.0,0.0011546]
[1739092709782,0.5669509,96992.0,96991.0,0.0011546]
[1739092712290,0.61708943,96992.0,96991.0,0.0011546]
[1739092722198,0.5669509,96992.0,96991.0,0.0011546]
[1739092726793,0.75131832,96992.0,96991.0,0.0011546]
[1739092730002,0.61709125,96992.0,96991.0,0.0011546]
[1739092730396,0.41094035,96992.0,96991.0,0.2073076]
[1739092745004,0.20615,96993.0,96991.0,0.2073076]
[1739092745005,0.56695,96993.0,96991.0,0.2073076]
[1739092745716,0.3608,96993.0,96991.0,0.2073076]
[1739092746014,0.2061509,96992.0,96991.0,0.0011546]
[1739092746399,0.2061509,96992.0,96991.0,0.0001546]
[1739092746605,0.2061509,96992.0,96991.0,0.0021546]
[1739092747201,0.2061509,96992.0,96991.0,0.0011546]
[1739092747411,0.2061509,96992.0,96991.0,0.0021546]
[1739092752913,0.34359616,96992.0,96991.0,0.0021546]
[1739092760523,0.25628731,96992.0,96991.0,0.0021546]
[1739092768727,0.34582145,96992.0,96991.0,0.0021546]
[1739092772830,0.56856515,96992.0,96991.0,0.0021546]
[1739092776631,1.17157015,96992.0,96991.0,0.0031546]
[1739092777731,1.17157015,96992.0,96991.0,0.0021546]
[1739092780233,0.97788731,96992.0,96991.0,0.0021546]
[1739092787238,1.04576731,96992.0,96991.0,0.0021546]
[1739092788535,1.24446144,96992.0,96991.0,0.0021546]
[1739092791937,0.52286144,96992.0,96991.0,0.0021546]
[1739092792338,0.88366144,96992.0,96991.0,0.0021546]
[1739092796645,0.77691077,96992.0,96991.0,0.0021546]
[1739092798733,0.78091077,96992.0,96991.0,0.0001546]
[1739092802336,0.78095077,96992.0,96991.0,0.0001546]
[1739092803453,0.82070085,96992.0,96991.0,0.0001546]
[1739092807052,0.71303077,96992.0,96991.0,0.0001546]
[1739092808944,0.24610971,97000.0,96991.0,0.3001546]
[1739092809245,0.05680745,97000.0,96999.0,0.206136]
[1739092810355,0.05880745,97000.0,96999.0,0.206136]
[1739092811452,0.06080745,97000.0,96999.0,0.206136]
[1739092811856,0.004,97000.0,96999.0,0.206136]
[1739092812054,0.002,97000.0,96995.0,0.06804]
[1739092812255,0.004,97000.0,96995.0,0.06804]
[1739092812455,0.004,97000.0,96996.0,0.0621]
[1739092812955,0.3609546,97010.0,96996.0,0.07264539]
[1739092813457,0.001,97000.0,96996.0,0.07264539]
[1739092813764,0.3609546,97010.0,97009.0,0.2061147]
[1739092815557,0.3669546,97010.0,97009.0,0.2071147]
[1739092816163,0.3719546,97010.0,97009.0,0.2071147]
[1739092818063,0.3719546,97010.0,97009.0,0.217469]
[1739092829963,0.55641785,97010.0,97009.0,0.217469]
[1739092831057,0.19561785,97010.0,97009.0,0.217469]
[1739092831263,0.55641785,97010.0,97009.0,0.217469]
[1739092832273,0.3719546,97010.0,97009.0,0.217469]
[1739092839082,0.49476342,97010.0,97009.0,0.217469]
[1739092841982,0.13396342,97010.0,97009.0,0.217469]
[1739092842185,0.49476342,97010.0,97009.0,0.217469]
[1739092846782,0.42208124,97010.0,97009.0,0.217469]
[1739092854979,0.60682702,97010.0,97009.0,0.217469]
[1739092857291,0.60682702,97010.0,97009.0,0.001]
[1739092858888,0.42208124,97010.0,97009.0,0.001]
[1739092862198,0.49918355,97010.0,97009.0,0.001]
[1739092862503,0.58870294,97010.0,96996.0,0.206141]
[1739092862688,0.3608,96997.0,96996.0,0.206141]
[1739092863001,0.3608,96997.0,96990.0,0.25434659]
[1739092863202,0.2061491,96993.0,96991.0,0.01058268]
[1739092863404,0.2061491,96993.0,96991.0,0.0001546]
[1739092866002,0.2061491,96993.0,96991.0,0.0021546]
[1739092866496,0.34240188,96992.0,96991.0,0.0021546]
[1739092866895,0.34240188,96992.0,96991.0,0.0031546]
[1739092867494,0.34240188,96992.0,96991.0,0.0011546]
[1739092867705,0.34240188,96992.0,96991.0,0.0031546]
[1739092869696,0.26529957,96992.0,96991.0,0.0031546]
[1739092876708,0.62609957,96992.0,96991.0,0.0031546]
[1739092877710,0.26529957,96992.0,96991.0,0.0031546]
[1739092878009,0.9101327,96992.0,96991.0,0.0031546]
[1739092879603,0.9781727,96992.0,96991.0,0.0031546]
[1739092881509,0.6173727,96992.0,96991.0,0.0031546]
[1739092881709,0.9781727,96992.0,96991.0,0.0031546]
[1739092882402,0.6173727,96992.0,96991.0,0.0031546]
[1739092882603,0.9781727,96992.0,96991.0,0.0031546]
[1739092885505,0.68511754,96992.0,96991.0,0.0031546]
[1739092890414,0.68511754,96992.0,96991.0,0.0012232]
[1739092890806,0.47896664,96992.0,96979.0,0.00154667]
[1739092891015,0.3608,96980.0,96979.0,0.01203794]
[1739092891805,0.3608,96980.0,96979.0,0.00154667]
[1739092892211,0.3608,96980.0,96979.0,0.00754667]
[1739092892415,0.3608,96980.0,96979.0,0.01254667]
[1739092892812,0.3608,96980.0,96979.0,0.00654667]
[1739092893013,0.3618,96980.0,96979.0,0.01254667]
[1739092894219,0.49699654,96980.0,96979.0,0.011]
[1739092894519,0.2061902,96974.0,96971.0,0.0321]
[1739092896014,0.2071902,96974.0,96971.0,0.0431]
[1739092897221,0.2071902,96974.0,96971.0,0.0411]
[1739092897807,0.2061928,96973.0,96971.0,0.0411]
[1739092898012,0.3608,96972.0,96971.0,0.0411]
[1739092898320,0.3608,96972.0,96971.0,0.0351]
[1739092899218,0.3608,96972.0,96971.0,0.0321]
[1739092899519,0.3608,96972.0,96971.0,0.0341]
[1739092900518,0.3618,96972.0,96971.0,0.0341]
[1739092903521,0.1843666,96982.0,96981.0,0.2061742]
[1739092904515,0.57653294,96996.0,96980.0,0.0326]
[1739092904719,0.57653294,96996.0,96988.0,0.2061594]
[1739092906522,0.0041546,96989.0,96988.0,0.2061594]
[1739092906718,0.0081546,96989.0,96988.0,0.5669594]
[1739092906920,0.3608,97003.0,96988.0,0.3608]
[1739092907116,0.3608,97003.0,96998.0,0.206138]
[1739092909425,0.00554695,97000.0,96998.0,0.206138]
[1739092909926,0.00854695,97000.0,96998.0,0.206138]
[1739092910224,0.00554695,97000.0,96998.0,0.206138]
[1739092910527,0.00854695,97000.0,96998.0,0.206138]
[1739092911229,0.00854695,97000.0,96998.0,0.21684904]
[1739092912223,0.00854695,97000.0,96998.0,0.57764904]
[1739092912618,0.00954695,97000.0,96998.0,0.57764904]
[1739092913227,0.00554695,97000.0,96998.0,0.57764904]
[1739092913531,0.00954695,97000.0,96998.0,0.57764904]
[1739092913826,0.05012962,96999.0,96998.0,0.57764904]
[1739092916227,0.05212962,96999.0,96998.0,0.57764904]
[1739092916623,0.05412962,96999.0,96998.0,0.57764904]
[1739092918231,0.004,96999.0,96998.0,0.57764904]
[1739092922238,0.004,96999.0,96998.0,0.21684904]
[1739092922536,0.004,96999.0,96998.0,0.57764904]
[1739092924534,0.0966,96999.0,96998.0,0.57764904]
[1739092925229,0.0966,96999.0,96998.0,0.21684904]
[1739092938750,0.14672577,96999.0,96998.0,0.21684904]
[1739092939849,0.18023436,97008.0,97007.0,0.206119]
[1739092940148,0.14823436,97008.0,97007.0,0.206119]
[1739092941141,0.15423436,97008.0,97007.0,0.206119]
[1739092942357,0.08268909,97008.0,97007.0,0.206119]
[1739092945558,0.011,97008.0,97007.0,0.206119]
[1739092951761,0.08700415,97008.0,97007.0,0.206119]
[1739092954667,0.011,97008.0,97007.0,0.206119]
[1739092957469,0.19557372,97008.0,97007.0,0.206119]
[1739092960563,0.011,97008.0,97007.0,0.206119]
[1739092961171,0.0199,97013.0,97012.0,0.2061084]
[1739092961772,0.47123937,97030.0,97012.0,0.2074506]
[1739092961972,0.0619,97029.0,97018.0,0.2060956]
[1739092962371,0.00015468,97028.0,97018.0,0.2060956]
[1739092963272,0.01554655,97019.0,97018.0,0.2070956]
[1739092963776,0.01554655,97019.0,97018.0,0.2080956]
[1739092964976,0.01554655,97019.0,97018.0,0.2188223]
[1739092966070,0.014,97019.0,97018.0,0.2188223]
[1739092966881,0.014,97019.0,97018.0,0.4262729]
[1739092969086,0.1377905,97019.0,97018.0,0.4262729]
[1739092969490,0.21533601,97024.0,97018.0,0.2201773]
[1739092969682,0.20194344,97024.0,97023.0,0.206085]
[1739092970879,0.20294344,97024.0,97023.0,0.567885]
[1739092972281,0.19443674,97024.0,97023.0,0.568885]
[1739092972481,0.19133825,97024.0,97023.0,0.568885]
[1739092972678,0.19133825,97024.0,97023.0,0.640325]
[1739092972879,0.19133825,97024.0,97023.0,0.8477756]
[1739092973080,0.19133825,97024.0,97023.0,0.8467756]
[1739092973280,0.18733825,97024.0,97023.0,0.8467756]
[1739092973484,0.18633825,97024.0,97023.0,0.8457756]
[1739092974096,0.003,97024.0,97023.0,0.8457756]
[1739092974683,0.0653,97034.0,97033.0,0.2060638]
[1739092974883,0.0653,97034.0,97033.0,0.4135144]
[1739092975977,0.0673,97034.0,97033.0,0.4145144]
[1739092978490,0.0673,97034.0,97033.0,0.42497826]
[1739092997818,0.0001546,97043.0,97033.0,0.21891446]
[1739092998022,1e-08,97043.0,97042.0,0.5668447]
[1739092998912,0.00400001,97043.0,97042.0,0.5668447]
[1739092999313,0.00400001,97043.0,97042.0,0.5678447]
[1739093000521,0.00200001,97043.0,97042.0,0.5688447]
[1739093000923,0.0639,97051.0,97042.0,0.3628]
[1739093001220,0.0639,97051.0,97050.0,0.2060277]
[1739093002616,0.0639,97051.0,97050.0,0.2080277]
[1739093004319,0.0639,97051.0,97050.0,0.2130277]
[1739093005715,0.1816466,97051.0,97050.0,0.2130277]
[1739093007020,0.1816466,97051.0,97050.0,0.2233854]
[1739093009022,0.2985327,97051.0,97050.0,0.2233854]
[1739093012020,0.0639,97051.0,97050.0,0.2233854]
[1739093019926,0.0639,97051.0,97050.0,1.7233854]
[1739093020726,0.0639,97051.0,97050.0,0.2233854]
[1739093029438,0.11400257,97051.0,97050.0,0.2233854]
[1739093033240,0.29877685,97051.0,97050.0,0.2233854]
[1739093036946,0.0639,97051.0,97050.0,0.2233854]
[1739093044037,0.0001546,97060.0,97059.0,0.2060086]
[1739093045643,0.0001546,97060.0,97059.0,0.2070086]
[1739093051264,0.0001546,97060.0,97059.0,0.2110086]
[1739093052865,0.0001546,97060.0,97059.0,0.2160086]
[1739093059169,0.0313,97064.0,97063.0,0.2060001]
[1739093060365,0.0313,97064.0,97063.0,0.2100001]
[1739093060561,0.0313,97064.0,97063.0,0.2120001]
[1739093066978,0.0313,97064.0,97063.0,0.22232754]
[1739093094890,0.09627039,97064.0,97063.0,0.22232754]
[1739093098493,0.1463655,97064.0,97063.0,0.22232754]
[1739093105291,0.1150655,97064.0,97063.0,0.22232754]
[1739093107398,0.0304,97066.0,97065.0,0.2059958]
[1739093107595,0.3608,97072.0,97071.0,0.2059831]
[1739093109603,0.18507921,97073.0,97071.0,0.2059831]
[1739093110196,0.18507921,97073.0,97071.0,0.2069831]
[1739093110905,0.00010081,97073.0,97071.0,0.2069831]
[1739093111502,0.00010081,97073.0,97071.0,0.2059831]
[1739093114996,0.00010081,97073.0,97071.0,0.2069831]
[1739093116302,0.00010081,97073.0,97071.0,0.2079831]
[1739093121010,0.00010081,97073.0,97071.0,1.7079831]
[1739093121310,0.00010081,97073.0,97071.0,0.2079831]
[1739093147527,0.00010081,97073.0,97072.0,0.205981]
[1739093148722,0.00010081,97073.0,97072.0,0.206981]
[1739093150233,0.00010081,97073.0,97072.0,0.207981]
[1739093153931,0.05977668,97073.0,97072.0,0.207981]
[1739093157736,0.00010081,97073.0,97072.0,0.207981]
[1739093163937,0.0606,97080.0,97079.0,0.2059661]
[1739093166247,0.0606,97080.0,97079.0,0.2149661]
[1739093171637,0.12027433,97080.0,97079.0,0.2149661]
[1739093172936,0.12027433,97080.0,97079.0,0.22542091]
[1739093174641,0.19592554,97080.0,97079.0,0.22542091]
[1739093177239,0.0606,97080.0,97079.0,0.22542091]
[1739093187254,0.12027417,97080.0,97079.0,0.22542091]